[Event "TUR-ch U13-18 Open 2023"]
[Site "Antalya"]
[Date "2023.01.25"]
[Round "6"]
[White "Caliskan, Seha"]
[Black "Kandaz, Berat Efe"]
[Result "0-1"]
[ECO "D13"]
[WhiteElo "1954"]
[BlackElo "1650"]
[Annotator "TA"]
[PlyCount "122"]
[EventDate "2023.01.17"]
[EventType "swiss"]
[EventCountry "TUR"]
[SourceTitle "playchess.com"]
[Source "ChessBase"]
[SourceQuality "1"]
[TimeControl "5400+30"]

{[%evp 15,122,11,26,14,8,11,7,-24,11,14,6,-10,-12,-12,-10,-7,-10,-14,-11,-13,-17,-16,-15,-6,0,0,0,0,0,-39,-35,-35,-36,-57,-59,-104,-109,-114,-110,-133,-141,-277,-290,-281,-268,-285,-269,-256,-212,-29994,-229,-216,-211,-197,-180,-175,-175,-167,-167,-229,-231,-450,-438,-515,-509,-509,-508,-501,-473,-493,-471,-471,-470,-405,-397,-396,-360,-834,-845,-756,-750,-1328,-716,-29957,-29961,-29962,-29961,-29954,-12798,-6187,-6621,-5867,-5165,-29971,-29973,-29970,-29974,-29974,-29974,-29975,-29976,-29978,-29978,-29979,-29980,-29979,-29978,-29983,-29984]} 1. d4 {[%emt 0:01:00]} d5 {[%emt 0:02:00]} 2. c4 {[%emt 0:00:30]} c6 {[%emt 0:00:00]} 3. cxd5 {[%emt 0:00:00]} cxd5 {[%emt 0:00:00]} 4. Nc3 {[%emt 0:00:00]} Nf6 {[%emt 0:00:30]} 5. Nf3 {[%emt 0:00:30]} Nc6 {[%emt 0:00:00]} 6. Bf4 {[%emt 0:00:00]} a6 {[%emt 0:00:00]} 7. Rc1 {[%emt 0:00:00]} Bf5 {[%emt 0:00:30]} 8. e3 {[%emt 0:00:00]} Rc8 {[%emt 0:00:30]} 9. Be2 {[%emt 0:07:00] D13: Slav Defence: Exchange variation without ...Bf5.} e6 {[%emt 0:00:30]} 10. O-O {[%emt 0:00:30]} Bd6 {[%emt 0:00:00]} 11. Qb3 {[%emt 0:06:30] [#] Hoping for Bxd6. The position is equal.} Na5 $146 {[%emt 0:16:00]} ({Predecessor:} 11... Bxf4 12. exf4 Qe7 13. Na4 O-O 14. Nc5 Nxd4 15. Nxd4 Rxc5 16. Nxf5 exf5 17. Rxc5 Qxc5 18. Qxb7 {½-½ Bu,X (2607)-Fridman,D (2569) Dos Hermanas Internet f 6th 2005 (5.6)}) 12. Qa4+ {[%emt 0:02:30]} Nc6 $1 {[%emt 0:00:00]} 13. Bxa6 {[%emt 0:27:30]} bxa6 {[%emt 0:02:00]} 14. Ne2 {[%emt 0:00:30]} Bd3 $1 {[%emt 0:16:30]} 15. Rxc6 {[%emt 0:00:30]} Bb5 {[%emt 0:00:30] This pair of bishops is nice.} 16. Rxc8 {[%emt 0:02:30]} ({Don't play} 16. Rxd6 Bxa4 17. Rxd8+ Kxd8 $17) 16... Qxc8 {[%emt 0:00:30]} 17. Qd1 {[%emt 0:00:30]} Bxf4 {[%emt 0:04:30]} 18. exf4 {[%emt 0:00:30] White is weak on the light squares} Qc4 {[%emt 0:00:30][%csl LRa2,LRe2]} 19. Re1 {[%emt 0:03:30]} Qxa2 {[%emt 0:01:30]} 20. Qc2 {[%emt 0:11:30] Strongly threatening Qc8+.} O-O {[%emt 0:03:30]} 21. Nc3 {[%emt 0:00:30]} Qc4 {[%emt 0:00:30][%cal Of6e4]} 22. Qd1 {[%emt 0:08:30]} Qb4 {[%emt 0:04:30]} 23. Qd2 {[%emt 0:01:30]} Rb8 {[%emt 0:03:30][%cal Bf8b8,Bb8b2,Bb2c2,Bc2c1][%mdl 32]} 24. Ne5 {[%emt 0:07:34]} Be8 {[%emt 0:17:30]} 25. Rb1 {[%emt 0:01:19] [#] White is now going downhill.} Ne4 $1 {[%emt 0:02:30]} 26. Nxe4 {[%emt 0:00:30]} dxe4 {[%emt 0:00:30]} 27. Qc2 {[%emt 0:08:36]} Qxd4 {[%emt 0:05:45]} 28. Rd1 {[%emt 0:00:23]} (28. Nc4 $17 {was called for.}) 28... Rxb2 $19 {[%emt 0:01:03]} (28... Qxb2 $2 29. Qxe4 a5 30. h3 $19) 29. Rxd4 {[%emt 0:00:01]} Rxc2 {[%emt 0:00:42][%mdl 4096] Endgame KRB-KRN} 30. g4 {[%emt 0:00:08]} f6 {[%emt 0:01:18]} 31. Nc4 {[%emt 0:00:18]} Bb5 {[%emt 0:00:00]} 32. Nd6 $2 {[%emt 0:01:07] [#]} (32. Rd8+ $19 Kf7 33. Ne3) 32... Be2 $2 {[%emt 0:02:27]} (32... Rc1+ {mates} 33. Rd1 Rxd1+ 34. Kg2 Bf1+ 35. Kg3 Rd3+ 36. f3 Rxf3+ 37. Kh4 Rh3#) 33. h3 {[%emt 0:01:23]} Rc1+ {[%emt 0:04:47]} 34. Kh2 {[%emt 0:00:18]} Rd1 {[%emt 0:00:37]} 35. Rxe4 {[%emt 0:00:30]} Bxg4 {[%emt 0:00:22]} 36. hxg4 {[%emt 0:01:47]} Rxd6 {[%emt 0:00:30] KR-KR} 37. Rb4 {[%emt 0:01:15]} (37. Ra4 $142) 37... Rd8 {[%emt 0:01:53]} 38. Kg3 $2 {[%emt 0:01:04]} (38. Ra4 {is the only way for White.}) 38... Ra8 {[%emt 0:00:05]} 39. f5 {[%emt 0:00:30]} exf5 {[%emt 0:00:33]} 40. gxf5 {[%emt 0:00:30]} a5 {[%emt 0:00:30]} 41. Ra4 {[%emt 0:00:30]} Kf7 {[%emt 0:00:00]} 42. Kf4 {[%emt 0:00:46]} g6 {[%emt 0:00:13]} 43. fxg6+ {[%emt 0:00:00]} hxg6 {[%emt 0:00:13]} (43... Kxg6 $2 {is the wrong capture.} 44. Kf3 $19) 44. Ke4 {[%emt 0:00:42]} Ke6 {[%emt 0:00:30]} 45. Kd4 {[%emt 0:00:30]} Kd6 {[%emt 0:00:00]} 46. f3 $2 {[%emt 0:00:39]} (46. f4) 46... Kc6 {[%emt 0:00:29]} 47. Kc3 {[%emt 0:00:26]} Kb5 {[%emt 0:00:09]} 48. Rf4 {[%emt 0:01:30]} a4 {[%emt 0:01:30][%cal Ba5a4,Ba4a3][%mdl 32] White must now prevent ...a3.} 49. Kb2 {[%emt 0:00:24]} a3+ {[%emt 0:00:17]} 50. Ka2 {[%emt 0:00:02]} f5 {[%emt 0:00:11]} 51. Rd4 {[%emt 0:00:20]} Kc5 {[%emt 0:00:54]} 52. Rd7 {[%emt 0:00:30]} g5 {[%emt 0:00:30]} 53. Rg7 {[%emt 0:00:30]} f4 {[%emt 0:00:30] Threatens to win with ...Kd4.} 54. Rxg5+ {[%emt 0:00:30]} Kd4 {[%emt 0:00:30] Black mates.} 55. Rb5 {[%emt 0:00:30]} Ke3 {[%emt 0:00:30]} 56. Rb3+ {[%emt 0:00:30]} Ke2 {[%emt 0:00:30]} 57. Rc3 {[%emt 0:00:18]} Rd8 {[%emt 0:04:36]} 58. Rc4 {[%emt 0:00:52]} Kxf3 {[%emt 0:00:30]} 59. Kxa3 {[%emt 0:00:00]} Ke3 {[%emt 0:00:37]} 60. Rc7 {[%emt 0:00:01]} f3 {[%emt 0:00:00]} 61. Rf7 {[%emt 0:00:49]} Re8 {[%emt 0:00:29] Weighted Error Value: White=0.56/Black=0.25 (precise)} 0-1

[Event "TUR-ch U13-18 Open 2023"]
[Site "Antalya"]
[Date "2023.01.25"]
[Round "6"]
[White "Sozat, Arda"]
[Black "Cicek, Bilal Emre"]
[Result "0-1"]
[ECO "B45"]
[WhiteElo "1877"]
[BlackElo "1538"]
[Annotator "NA RC COMBH"]
[PlyCount "146"]
[EventDate "2023.01.17"]
[EventType "swiss"]
[EventCountry "TUR"]
[SourceTitle "playchess.com"]
[Source "ChessBase"]
[SourceQuality "1"]
[TimeControl "5400+30"]

1. e4 {[%emt 0:01:00]} c5 {[%emt 0:01:00]} 2. Nf3 {[%emt 0:00:30]} e6 {[%emt 0:00:30]} 3. d4 {[%emt 0:00:30]} cxd4 {[%emt 0:00:30]} 4. Nxd4 {[%emt 0:00:30]} Nf6 {[%emt 0:00:30]} 5. Nc3 {[%emt 0:00:30]} Nc6 {[%emt 0:00:30]} 6. Nxc6 {[%emt 0:00:30]} bxc6 {[%emt 0:00:00]} 7. e5 {[%emt 0:00:00]} Nd5 {[%emt 0:00:00]} 8. Ne4 {[%emt 0:00:00]} Bb7 {[%emt 0:00:00]} 9. c4 {[%emt 0:03:30]} Nb4 {[%emt 0:00:00]} 10. f4 {[%emt 0:15:30]} c5 {[%emt 0:04:30]} 11. Bd3 {[%emt 0:02:30]} Nxd3+ {[%emt 0:01:30]} 12. Qxd3 {[%emt 0:00:00]} Qc7 {[%emt 0:07:30]} 13. Be3 {[%emt 0:27:00]} Qc6 {[%emt 0:28:30]} 14. Nd2 {[%emt 0:20:30]} d5 {[%emt 0:23:30]} 15. exd6 {[%emt 0:07:04]} Bxd6 {[%emt 0:00:00]} 16. O-O-O {[%emt 0:00:47]} Rd8 {[%emt 0:01:00]} 17. Nf3 {[%emt 0:01:47]} Bc7 {[%emt 0:06:30]} 18. Qc3 {[%emt 0:01:46]} O-O {[%emt 0:00:30]} 19. Ne5 {[%emt 0:00:59]} Bxe5 {[%emt 0:00:30]} ({Of course not} 19... Qxg2 $6 20. Rhg1 Bxe5 21. Qxe5 Rxd1+ 22. Kxd1 Qf3+ 23. Kc1 $14) 20. Qxe5 {[%emt 0:00:21]} Qa4 $15 {[%emt 0:04:08]} (20... Qxg2 $2 21. Rdg1 $18 {[%mdl 64] Skewer} (21. Bxc5 Rfe8 $15)) 21. b3 {[%emt 0:11:25]} Qxa2 {[%emt 0:04:38]} 22. Bxc5 {[%emt 0:00:22]} Qxb3 {[%emt 0:07:30]} 23. Bxf8 {[%emt 0:00:24]} Qxc4+ {[%emt 0:00:19]} 24. Kb2 {[%emt 0:00:30]} Rxf8 {[%emt 0:00:00]} 25. Rd4 {[%emt 0:03:29]} Qc6 {[%emt 0:01:00]} 26. Rd2 {[%emt 0:00:30]} Qb6+ {[%emt 0:00:30]} 27. Ka1 {[%emt 0:00:44]} Bd5 {[%emt 0:00:33]} 28. Rb2 {[%emt 0:01:11]} Qa6+ {[%emt 0:01:14]} 29. Kb1 {[%emt 0:00:01]} Qd3+ {[%emt 0:03:06]} 30. Ka1 {[%emt 0:00:01]} Qa3+ {[%emt 0:01:25]} 31. Kb1 {[%emt 0:00:01]} a5 {[%emt 0:01:38]} 32. Rd1 {[%emt 0:01:05]} Qa4 {[%emt 0:01:33]} 33. Rd4 {[%emt 0:00:09]} Qc6 {[%emt 0:00:03]} 34. Rb8 {[%emt 0:01:14]} Qc5 {[%emt 0:00:42]} 35. Rxf8+ {[%emt 0:00:17]} Kxf8 {[%emt 0:00:04]} 36. Qb8+ {[%emt 0:01:04]} Ke7 {[%emt 0:00:30]} 37. Qb2 {[%emt 0:00:30]} Bxg2 {[%emt 0:00:30]} 38. Rd1 {[%emt 0:00:30]} Be4+ {[%emt 0:00:30]} 39. Ka1 {[%emt 0:00:30]} Bd5 {[%emt 0:00:30]} 40. Rc1 {[%emt 0:00:30]} Qd6 {[%emt 0:00:30]} 41. Re1 {[%emt 0:00:30]} Qb4 {[%emt 0:00:30]} 42. Qxb4+ {[%emt 0:00:30]} axb4 {[%emt 0:00:30]} 43. Kb2 {[%emt 0:00:30]} Kf6 {[%emt 0:00:30]} 44. Rf1 {[%emt 0:00:30]} Kf5 {[%emt 0:00:30]} 45. Kc2 {[%emt 0:00:30]} f6 {[%emt 0:00:00]} 46. Kd3 {[%emt 0:00:46]} g5 {[%emt 0:00:00]} 47. Ke3 {[%emt 0:00:04]} g4 {[%emt 0:00:46]} 48. Rf2 {[%emt 0:00:54]} h5 {[%emt 0:00:07]} 49. Rb2 {[%emt 0:00:03]} b3 {[%emt 0:00:32]} 50. Rb1 {[%emt 0:00:30]} h4 {[%emt 0:00:00]} 51. Rb2 {[%emt 0:00:31]} g3 {[%emt 0:00:19]} 52. h3 {[%emt 0:00:49]} g2 {[%emt 0:00:30]} 53. Rb1 {[%emt 0:00:01]} Be4 {[%emt 0:00:11]} 54. Rg1 {[%emt 0:00:30]} b2 {[%emt 0:00:30]} 55. Kf2 {[%emt 0:00:30]} b1=Q {[%emt 0:00:00]} 56. Rxb1 {[%emt 0:00:00]} Bxb1 {[%emt 0:00:00]} 57. Kxg2 {[%emt 0:00:26]} Kxf4 {[%emt 0:00:17]} 58. Kh2 {[%emt 0:00:30]} e5 {[%emt 0:00:30]} 59. Kh1 {[%emt 0:00:30]} e4 {[%emt 0:00:30]} 60. Kg1 {[%emt 0:00:30]} e3 {[%emt 0:00:30]} 61. Kf1 {[%emt 0:00:00]} Kf3 {[%emt 0:00:00]} 62. Ke1 {[%emt 0:00:00]} Bc2 {[%emt 0:00:00]} 63. Kf1 {[%emt 0:00:00]} e2+ {[%emt 0:00:00]} 64. Ke1 {[%emt 0:00:00]} Bf5 {[%emt 0:00:00]} 65. Kd2 {[%emt 0:00:00]} Kf2 {[%emt 0:00:00]} 66. Kc3 {[%emt 0:00:00]} e1=Q+ {[%emt 0:00:00]} 67. Kd4 {[%emt 0:00:00]} Qe5+ {[%emt 0:00:00]} 68. Kc4 {[%emt 0:00:00]} Ke3 {[%emt 0:00:00]} 69. Kb3 {[%emt 0:00:03]} Kd3 {[%emt 0:00:00]} 70. Ka4 {[%emt 0:00:00]} Qb8 {[%emt 0:00:00]} 71. Ka5 {[%emt 0:00:00]} Bc8 {[%emt 0:00:00]} 72. Ka4 {[%emt 0:00:00]} Kc4 {[%emt 0:00:17]} 73. Ka3 {[%emt 0:00:19]} Qb3# {[%emt 0:00:00]} 0-1

[Event "TUR-ch U13-18 Open 2023"]
[Site "Antalya"]
[Date "2023.01.25"]
[Round "6"]
[White "Dirikolu, Deniz"]
[Black "Tezcan, Alper"]
[Result "1/2-1/2"]
[ECO "C12"]
[WhiteElo "1868"]
[BlackElo "1568"]
[Annotator "NA RC COMBH"]
[PlyCount "53"]
[EventDate "2023.01.17"]
[EventType "swiss"]
[EventCountry "TUR"]
[SourceTitle "playchess.com"]
[Source "ChessBase"]
[SourceQuality "1"]
[TimeControl "5400+30"]

1. e4 {[%emt 0:01:00]} e6 {[%emt 0:02:00]} 2. d4 {[%emt 0:02:30]} d5 {[%emt 0:00:30]} 3. Nc3 {[%emt 0:00:30]} Nf6 {[%emt 0:00:30]} 4. Bg5 {[%emt 0:00:30]} Bb4 {[%emt 0:00:00]} 5. e5 {[%emt 0:00:00]} h6 {[%emt 0:00:00]} 6. Be3 {[%emt 0:00:00]} Ne4 {[%emt 0:01:30]} 7. a3 {[%emt 0:00:00]} Bxc3+ {[%emt 0:10:30]} 8. bxc3 {[%emt 0:00:00]} c5 {[%emt 0:01:30]} 9. Bd3 {[%emt 0:14:30]} Qa5 {[%emt 0:11:30]} 10. Ne2 {[%emt 0:11:30]} cxd4 {[%emt 0:08:30]} 11. Bxd4 {[%emt 0:00:00]} Nc5 {[%emt 0:00:30]} 12. O-O {[%emt 0:02:00]} Nc6 {[%emt 0:05:30]} 13. f4 {[%emt 0:02:30]} g6 {[%emt 0:03:30]} 14. Kh1 {[%emt 0:01:30]} (14. Bf2 $1 $14) 14... Bd7 {[%emt 0:06:30]} (14... Nxd4 $1 $15 15. Nxd4 (15. cxd4 Nxd3 16. cxd3 Bd7 $15) 15... O-O) 15. Rb1 {[%emt 0:01:30]} (15. Bf2 $11) 15... Nxd3 {[%emt 0:01:30]} 16. Qxd3 {[%emt 0:00:30]} b6 {[%emt 0:01:30]} 17. g4 {[%emt 0:07:30]} Rc8 {[%emt 0:16:30]} 18. Rf3 {[%emt 0:04:30]} Qxa3 {[%emt 0:02:30]} 19. f5 {[%emt 0:00:30]} g5 {[%emt 0:03:30]} 20. Rbf1 {[%emt 0:02:30]} Kd8 {[%emt 0:02:56]} 21. fxe6 {[%emt 0:04:30]} Bxe6 {[%emt 0:00:20]} 22. Rxf7 {[%emt 0:00:00]} Bxf7 $15 {[%emt 0:07:16]} 23. e6 {[%emt 0:00:00]} (23. Rxf7 $5 {[%cal Re5e6]} Rc7 24. Rf6 $17 (24. Bxb6 $2 axb6 25. Qxd5+ Kc8 $19)) 23... Bxe6 {[%emt 0:01:18]} 24. Bxh8 {[%emt 0:00:30]} Kd7 {[%emt 0:01:07]} 25. Bf6 {[%emt 0:01:30]} Rf8 {[%emt 0:03:25]} 26. Qh7+ {[%emt 0:01:30]} Kc8 {[%emt 0:00:24]} 27. Qxh6 {[%emt 0:00:30]} 1/2-1/2

[Event "TUR-ch U13-18 Open 2023"]
[Site "Antalya"]
[Date "2023.01.25"]
[Round "6"]
[White "Eroz, Enis"]
[Black "Ince, Taylan Ruzgar"]
[Result "0-1"]
[ECO "D87"]
[WhiteElo "1827"]
[BlackElo "2267"]
[Annotator "TA"]
[PlyCount "103"]
[EventDate "2023.01.17"]
[EventType "swiss"]
[EventCountry "TUR"]
[SourceTitle "playchess.com"]
[Source "ChessBase"]
[SourceQuality "1"]
[TimeControl "5400+30"]

{[%evp 22,103,14,6,8,-30,-44,-41,10,10,15,18,13,6,19,-17,0,-8,0,-11,-14,-6,-13,-7,-7,-11,0,0,0,0,0,0,8,6,6,6,11,6,12,8,20,3,45,0,23,23,16,18,29,0,0,0,18,0,0,0,10,4,39,0,7,0,0,0,0,0,0,-86,-70,-101,-50,-85,-78,-77,-51,-77,-88,-91,-82,-103,-103,-97,-80,-29999]} 1. d4 {[%emt 0:02:00]} Nf6 {[%emt 0:01:00]} 2. c4 {[%emt 0:00:30]} g6 {[%emt 0:00:00]} 3. Nc3 {[%emt 0:00:30]} d5 {[%emt 0:00:00]} 4. cxd5 {[%emt 0:05:30]} Nxd5 {[%emt 0:00:30]} 5. e4 {[%emt 0:00:30]} Nxc3 {[%emt 0:00:30]} 6. bxc3 {[%emt 0:00:30]} Bg7 {[%emt 0:00:30]} 7. Bc4 {[%emt 0:00:00]} c5 {[%emt 0:00:30]} 8. Ne2 {[%emt 0:00:00]} O-O {[%emt 0:00:00]} 9. O-O {[%emt 0:01:30]} Nc6 {[%emt 0:01:00]} 10. Be3 {[%emt 0:02:30]} Na5 {[%emt 0:03:30] 10...Bg4 is setting a new trend.} 11. Bd3 {[%emt 0:01:30]} b6 {[%emt 0:00:30]} 12. Rc1 {[%emt 0:17:30]} e5 {[%emt 0:07:30] [#] D87: Exchange Grünfeld: Classical Line: Variations without ...cxd4.} 13. f4 $146 {[%emt 0:07:30]} ({Predecessor:} 13. dxe5 Be6 14. c4 Qd7 15. Nf4 Bxe5 16. Nd5 Nc6 17. f4 Bxd5 18. cxd5 Bd4 19. Qd2 Bxe3+ 20. Qxe3 {1-0 Salem,A (2682)-Kamsky,G (2665) Djerba Blitz Masters KO 2020 (3.3)}) 13... cxd4 {[%emt 0:04:30]} 14. cxd4 {[%emt 0:00:30]} exf4 {[%emt 0:07:30]} ({Black should try} 14... exd4 $15 15. Bd2 Bb7) 15. Rxf4 $11 {[%emt 0:02:30]} Bh6 {[%emt 0:00:30]} 16. Rf3 {[%emt 0:01:30][%cal Bf4f3,Bf3e3,Be3e2,Be2c2][%mdl 32]} Bxe3+ {[%emt 0:00:30]} 17. Rxe3 {[%emt 0:00:00]} Bg4 {[%emt 0:00:30]} 18. Bb1 {[%emt 0:02:00]} Rc8 {[%emt 0:05:30]} 19. Rxc8 {[%emt 0:08:30]} Qxc8 {[%emt 0:00:30]} 20. h3 {[%emt 0:02:30]} Bxe2 {[%emt 0:00:30]} 21. Rxe2 {[%emt 0:01:30]} Rd8 {[%emt 0:00:30] And now ...Qc5 would win.} 22. Rc2 {[%emt 0:09:30] Against Qc5} Qe6 {[%emt 0:08:30]} 23. Qd3 {[%emt 0:08:30]} Qf6 {[%emt 0:02:30]} 24. d5 {[%emt 0:02:30]} Qe5 {[%emt 0:07:30] Prevents Rc7} 25. Rc1 {[%emt 0:01:30]} Nb7 {[%emt 0:05:30]} 26. Qc3 {[%emt 0:00:30] Against Nc5} Qxc3 {[%emt 0:02:30]} 27. Rxc3 {[%emt 0:00:30][%mdl 4096] Endgame KRB-KRN} Nc5 {[%emt 0:00:00]} 28. Kf2 {[%emt 0:01:30]} Kf8 {[%emt 0:01:00]} 29. Ke3 {[%emt 0:01:30]} Ke7 {[%emt 0:00:00]} 30. g4 {[%emt 0:05:53]} f6 {[%emt 0:08:00]} 31. Bc2 {[%emt 0:00:25]} g5 {[%emt 0:02:30]} 32. Ra3 {[%emt 0:03:33]} a6 {[%emt 0:02:30]} 33. Rc3 {[%emt 0:04:00]} Kd6 {[%emt 0:09:30]} 34. Kd4 {[%emt 0:01:01]} Rc8 {[%emt 0:02:15]} 35. Bd3 {[%emt 0:00:38]} Rc7 {[%emt 0:02:34]} 36. Be2 {[%emt 0:04:02]} Re7 {[%emt 0:02:29][%csl Gc5][%cal Re7e4] [#]} 37. Bf3 {[%emt 0:00:38]} (37. Re3 $5 {[%cal Re2d3]}) 37... Re8 {[%emt 0:01:09]} 38. Bg2 {[%emt 0:00:34]} Rc8 {[%emt 0:00:50]} 39. Bf1 {[%emt 0:00:15]} Re8 {[%emt 0:02:59][%csl Gc5][%cal Re8e4]} 40. Bg2 {[%emt 0:00:02]} Re7 {[%emt 0:01:58]} 41. Bf3 {[%emt 0:00:16]} Rc7 {[%emt 0:01:21]} 42. Be2 {[%emt 0:00:26]} b5 {[%emt 0:02:14]} 43. a3 {[%emt 0:00:27]} Nd7 {[%emt 0:00:39]} 44. Rf3 {[%emt 0:01:02]} (44. Rxc7 $11 Kxc7 45. Kc3) 44... Rc2 $17 {[%emt 0:00:30]} 45. Bf1 {[%emt 0:00:30]} Ke7 {[%emt 0:00:30]} (45... Rc1 $17) 46. Bd3 {[%emt 0:00:30]} Ra2 {[%emt 0:00:30] [#] aiming for ...Ne5.} 47. Bf1 {[%emt 0:03:36]} Ne5 {[%emt 0:03:18]} 48. Rb3 {[%emt 0:01:07]} Kd6 {[%emt 0:00:58] Black is better.} 49. Rc3 {[%emt 0:00:25]} Rf2 {[%emt 0:00:17]} 50. Rc1 {[%emt 0:00:30]} Rf3 {[%emt 0:00:00]} 51. Ra1 {[%emt 0:00:17]} Rb3 {[%emt 0:00:43][%cal Re5f3] Black is much more active.} 52. a4 $2 {[%emt 0:00:51][%mdl 8192] Weighted Error Value: White=0.13 (very precise) /Black=0.08 (flawless)} (52. Be2 $17) 0-1

[Event "TUR-ch U13-18 Open 2023"]
[Site "Antalya"]
[Date "2023.01.25"]
[Round "6"]
[White "Kara, Goktan Can"]
[Black "Koyuncu, Omer Arda"]
[Result "1-0"]
[ECO "B28"]
[WhiteElo "1755"]
[BlackElo "1627"]
[Annotator "NA RC COMBH"]
[PlyCount "82"]
[EventDate "2023.01.17"]
[EventType "swiss"]
[EventCountry "TUR"]
[SourceTitle "playchess.com"]
[Source "ChessBase"]
[SourceQuality "1"]
[TimeControl "5400+30"]

1. e4 {[%emt 0:01:00]} c5 {[%emt 0:01:00]} 2. Nf3 {[%emt 0:00:00]} Nc6 {[%emt 0:00:30]} 3. c4 {[%emt 0:01:00]} e6 {[%emt 0:02:30]} 4. Nc3 {[%emt 0:01:30]} a6 {[%emt 0:01:30]} 5. d4 {[%emt 0:01:30]} cxd4 {[%emt 0:01:30]} 6. Nxd4 {[%emt 0:01:30]} Nf6 {[%emt 0:00:30]} 7. Nxc6 {[%emt 0:03:30]} dxc6 {[%emt 0:07:30]} 8. Qxd8+ {[%emt 0:04:30]} Kxd8 {[%emt 0:00:30]} 9. Bg5 {[%emt 0:00:30]} e5 {[%emt 0:16:30]} 10. O-O-O+ {[%emt 0:07:30]} Kc7 {[%emt 0:08:30]} 11. h3 {[%emt 0:03:30]} Bb4 {[%emt 0:10:30]} 12. Bd3 {[%emt 0:03:30]} Nd7 {[%emt 0:10:30]} 13. Bd2 {[%emt 0:06:30]} a5 {[%emt 0:05:30]} 14. Rhf1 {[%emt 0:09:30]} Nc5 {[%emt 0:02:30]} 15. Bc2 {[%emt 0:01:30]} Ne6 {[%emt 0:06:30]} 16. a3 {[%emt 0:04:30]} Bxc3 {[%emt 0:05:30]} 17. Bxc3 {[%emt 0:00:30]} f6 {[%emt 0:00:11]} 18. g3 {[%emt 0:05:30]} Ng5 {[%emt 0:01:33]} 19. f4 {[%emt 0:09:30]} exf4 {[%emt 0:05:06]} 20. gxf4 {[%emt 0:00:00]} Nxh3 {[%emt 0:00:07]} 21. e5 {[%emt 0:01:00]} Bg4 {[%emt 0:02:44]} 22. exf6 {[%emt 0:09:30]} gxf6 {[%emt 0:09:19]} 23. Rd2 {[%emt 0:02:30]} Raf8 {[%emt 0:00:44]} 24. Bxa5+ {[%emt 0:01:30]} b6 {[%emt 0:00:15]} 25. Bc3 {[%emt 0:00:30]} h5 {[%emt 0:00:18]} 26. Rh2 {[%emt 0:01:46]} Re8 {[%emt 0:00:27]} 27. Bd3 {[%emt 0:01:40]} Re3 {[%emt 0:00:27]} 28. Bxf6 {[%emt 0:01:02]} Rf8 {[%emt 0:00:30]} 29. Be5+ {[%emt 0:00:00]} Kb7 {[%emt 0:01:06]} 30. Kd2 {[%emt 0:00:18]} Rg3 {[%emt 0:00:06]} 31. Kc2 {[%emt 0:07:18]} Rd8 {[%emt 0:00:55]} 32. Be4 {[%emt 0:04:06]} Re3 {[%emt 0:00:24]} 33. Bg6 {[%emt 0:00:38]} Rf8 {[%emt 0:00:37]} 34. Rhh1 {[%emt 0:01:07]} Re2+ {[%emt 0:00:12]} 35. Kb1 {[%emt 0:01:04]} Ka6 {[%emt 0:00:53]} 36. c5 {[%emt 0:00:51]} b5 {[%emt 0:00:30]} 37. Bd6 {[%emt 0:01:07]} Rh8 {[%emt 0:00:01]} 38. f5 {[%emt 0:00:30]} Ng5 {[%emt 0:00:44]} 39. f6 {[%emt 0:01:01]} Ne6 {[%emt 0:00:28]} 40. f7 {[%emt 0:00:40]} Nf8 {[%emt 0:00:35]} 41. Bxh5 {[%emt 0:00:58]} Be6 {[%emt 0:00:38]} 1-0

[Event "TUR-ch U13-18 Open 2023"]
[Site "Antalya"]
[Date "2023.01.25"]
[Round "6"]
[White "Dolek, Gokalp Deniz"]
[Black "Ergin, Sahin"]
[Result "1/2-1/2"]
[ECO "B90"]
[WhiteElo "1740"]
[BlackElo "1878"]
[Annotator "NA RC COMBH"]
[PlyCount "81"]
[EventDate "2023.01.17"]
[EventType "swiss"]
[EventCountry "TUR"]
[SourceTitle "playchess.com"]
[Source "ChessBase"]
[SourceQuality "1"]
[TimeControl "5400+30"]

1. e4 {[%emt 0:01:00]} c5 {[%emt 0:02:00]} 2. Nf3 {[%emt 0:00:00]} d6 {[%emt 0:00:30]} 3. d4 {[%emt 0:00:00]} cxd4 {[%emt 0:00:30]} 4. Nxd4 {[%emt 0:00:30]} Nf6 {[%emt 0:00:30]} 5. Nc3 {[%emt 0:00:30]} a6 {[%emt 0:00:00]} 6. h3 {[%emt 0:00:00]} e5 {[%emt 0:02:00] The main line 6...e5 scores better than 6...e6.} 7. Nde2 {[%emt 0:00:00]} Be7 {[%emt 0:06:30]} 8. g4 {[%emt 0:00:00]} h6 {[%emt 0:02:30]} 9. Bg2 {[%emt 0:00:00]} Be6 {[%emt 0:00:00]} 10. O-O {[%emt 0:00:30]} Nbd7 {[%emt 0:11:00]} 11. Ng3 {[%emt 0:01:30]} O-O {[%emt 0:17:30]} 12. Be3 {[%emt 0:07:30]} Nb6 {[%emt 0:03:30]} 13. Nf5 {[%emt 0:08:30]} Bxf5 {[%emt 0:06:30]} (13... Nc4 $11) 14. exf5 {[%emt 0:05:30]} Qc7 {[%emt 0:06:30]} 15. Qf3 {[%emt 0:15:30]} Rab8 {[%emt 0:03:30] [#]} 16. h4 $146 {[%emt 0:07:30]} ({Predecessor:} 16. Qg3 Nc4 17. Bc1 Qd8 18. b3 Na5 19. Rd1 Nc6 20. Ne2 Rc8 21. c4 b5 22. c5 {½-½ Pavlicek,M (2316)-Grebenshchikov,A (2337) RCCA-ch 20 sf05 email 2014}) 16... Nh7 {[%emt 0:07:30]} 17. Qg3 {[%emt 0:01:30]} Qd8 {[%emt 0:06:30]} 18. Bxb6 {[%emt 0:11:30]} Qxb6 {[%emt 0:00:30]} 19. Nd5 {[%emt 0:00:30]} Qd8 {[%emt 0:00:00]} 20. h5 {[%emt 0:07:30]} Nf6 {[%emt 0:03:00]} 21. Rad1 {[%emt 0:01:30]} Nxd5 {[%emt 0:00:59]} 22. Rxd5 {[%emt 0:00:30]} Rc8 {[%emt 0:02:33]} 23. Qd3 $11 {[%emt 0:08:30]} b5 {[%emt 0:02:45]} 24. f6 {[%emt 0:07:19]} Bxf6 {[%emt 0:02:54]} 25. Rxd6 {[%emt 0:00:25]} Qc7 {[%emt 0:01:18]} 26. Rc6 {[%emt 0:00:54]} Qa5 {[%emt 0:00:53]} 27. Rxc8 {[%emt 0:09:55]} Rxc8 {[%emt 0:00:01]} 28. a3 {[%emt 0:00:28]} Qa4 {[%emt 0:01:51]} 29. Be4 {[%emt 0:01:14]} Rd8 {[%emt 0:01:24]} 30. Qf3 {[%emt 0:01:42]} Qd4 {[%emt 0:00:33]} 31. b3 {[%emt 0:01:13]} Qb2 {[%emt 0:01:20]} 32. Rd1 {[%emt 0:00:55]} Qxa3 {[%emt 0:03:36]} 33. Rxd8+ {[%emt 0:00:22]} Bxd8 {[%emt 0:00:30]} 34. Qf5 {[%emt 0:00:30]} Qc1+ {[%emt 0:00:30]} 35. Kg2 {[%emt 0:00:30]} Qf4 {[%emt 0:00:30]} 36. Qxf4 {[%emt 0:00:30]} exf4 {[%emt 0:00:30]} 37. Kf3 {[%emt 0:00:30]} Bb6 {[%emt 0:00:30]} 38. Bb7 {[%emt 0:00:30]} a5 {[%emt 0:00:30]} 39. Bc6 {[%emt 0:00:30]} b4 {[%emt 0:00:30]} 40. Kxf4 {[%emt 0:00:30]} Bxf2 {[%emt 0:00:30]} 41. Kf5 {[%emt 0:00:30]} 1/2-1/2